bitfinex-derivatives/quotes_SOLF0:USTF0_20250307
["timestamp","ask_amount","ask_price","bid_price","bid_amount"]
[1741355592059,0.04635924,145.09,145.06,0.0503227]
[1741355593754,6.8923,145.07,145.06,0.0503227]
[1741355594564,6.8941,145.04,145.01,3.8226]
[1741355594861,3.7692,145.09,145.01,3.8226]
[1741355595777,0.04915583,145.06,145.04,0.05289961]
[1741355596269,6.8933,145.05,145.04,0.05289961]
[1741355596671,0.04915583,145.06,145.04,0.05289961]
[1741355597570,6.8933,145.05,145.04,0.05289961]
[1741355597972,0.04915583,145.06,145.04,0.05289961]
[1741355599168,0.04915583,145.06,145.05,6.8933]
[1741355599971,0.04915583,145.06,145.04,0.05289961]
[1741355600977,0.04915583,145.06,145.04,6.94659961]
[1741355601169,0.04915583,145.06,145.04,0.05289961]
[1741355603377,0.04915583,145.06,145.04,6.94649961]
[1741355603674,0.04915583,145.06,145.04,0.05289961]
[1741355604173,6.94205583,145.06,145.04,0.05289961]
[1741355604372,0.04915583,145.06,145.04,0.05289961]
[1741355604771,17.96711675,145.05,144.97,3.8002]
[1741355604974,17.96711675,145.03,144.97,3.8002]
[1741355605373,6.8955,145.01,144.97,10.697]
[1741355605773,0.05105012,145.0,144.98,0.04672596]
[1741355606475,3.9998,145.1,144.99,28.73646066]
[1741355606671,3.9998,145.1,145.02,28.73646066]
[1741355606871,3.9998,145.1,145.08,6.8916]
[1741355607067,3.8279,145.13,145.03,37.94]
[1741355607375,3.8279,145.13,145.04,3.8374]
[1741355607679,0.05164187,145.09,145.07,0.04400036]
[1741355609480,37.94,145.15,145.07,37.98400036]
[1741355609681,44.8287,145.15,145.07,37.98400036]
[1741355610074,3.9751,145.16,145.07,37.98400036]
[1741355610075,3.9751,145.16,145.08,28.73646066]
[1741355610583,0.04562908,145.13,145.11,0.0440377]
[1741355615896,0.04562908,145.13,145.11,6.9340377]
[1741355616187,0.04562908,145.13,145.11,0.0440377]
[1741355618584,0.04562908,145.13,145.11,4.1497377]
[1741355618782,4.0835,145.2,145.11,4.1497377]
[1741355618986,4.0835,145.2,145.13,6.8892]
[1741355619191,4.0835,145.2,145.11,8.0471]
[1741355619790,4.0835,145.2,145.12,37.88]
[1741355620092,0.04904605,145.17,145.14,0.04887183]
[1741355620994,6.8885,145.16,145.14,0.04887183]
[1741355621389,0.04904605,145.17,145.14,0.04887183]
[1741355621589,6.8885,145.16,145.14,0.04887183]
[1741355622087,0.04904605,145.17,145.14,0.04887183]
[1741355623197,6.8884,145.16,145.14,0.04887183]
[1741355623789,6.93684605,145.17,145.14,0.04887183]
[1741355624083,0.04904605,145.17,145.14,0.04887183]
[1741355627490,0.04904605,145.17,145.15,6.8885]
[1741355628196,0.04904605,145.17,145.14,0.04887183]
[1741355628404,3.7145,145.24,145.16,28.73646066]
[1741355629304,6.8858,145.21,145.16,35.62436066]
[1741355629504,6.9349337,145.21,145.19,0.04506023]
[1741355629707,0.0491337,145.21,145.19,0.04506023]
[1741355630092,6.8862,145.2,145.19,0.04506023]
[1741355631606,0.0491337,145.21,145.13,37.8]
[1741355631905,37.8491337,145.21,145.11,4.1057]
[1741355632307,41.6197,145.21,145.11,4.1057]
[1741355632506,6.8895,145.13,145.1,28.73646066]
[1741355632900,6.9381395,145.13,145.1,28.78652592]
[1741355633101,0.0486395,145.13,145.1,28.78652592]
[1741355633703,0.0486395,145.13,145.1,35.67732592]
[1741355634407,0.0486395,145.13,145.1,28.78652592]
[1741355634996,0.0486395,145.13,145.11,6.8904]
[1741355635914,0.0486395,145.13,145.12,6.89]
[1741355636215,0.0486395,145.13,145.1,28.78652592]
[1741355636509,0.0486395,145.13,145.11,6.8902]
[1741355636708,0.0486395,145.13,145.1,28.78652592]
[1741355636910,0.0486395,145.13,145.11,6.8901]
[1741355637110,6.9381395,145.13,145.1,28.78652592]
[1741355637310,6.9381395,145.13,145.1,0.05006526]
[1741355637511,0.0486395,145.13,145.1,0.05006526]
[1741355637713,6.8904,145.12,145.1,0.05006526]
[1741355638102,0.0486395,145.13,145.1,0.05006526]
[1741355638599,3.8547,145.2,145.11,17.9384868]
[1741355638807,6.8862,145.2,145.13,17.9384868]
[1741355639212,6.8862,145.2,145.15,6.8881]
[1741355639407,6.8859,145.21,145.15,17.9384868]
[1741355639816,0.0498516,145.19,145.17,0.04979954]
[1741355641316,0.0498516,145.19,145.17,17.98828634]
[1741355641509,0.0498516,145.19,145.18,6.8871]
[1741355641710,3.8612,145.25,145.18,37.76]
[1741355642015,75.85718521,145.27,145.26,6.8833]
[1741355642205,31.21649101,145.27,145.26,24.8217868]
[1741355642414,18.85429101,145.27,145.26,24.8217868]
[1741355642612,18.85429101,145.27,145.25,37.74]
[1741355643007,18.90483052,145.27,145.25,0.04843001]
[1741355643617,36.84331732,145.27,145.25,0.04843001]
[1741355643814,36.84331732,145.27,145.15,5.1904]
[1741355644008,18.90483052,145.27,145.15,3.9268]
[1741355644314,18.85429101,145.27,145.19,17.9384868]
[1741355644614,3.8951,145.28,145.2,28.66247388]
[1741355644813,3.9115,145.29,145.23,28.66247388]
[1741355645014,5.015e-05,145.25,145.23,28.71077311]
[1741355645216,119.0916256,145.33,145.24,28.66247388]
[1741355645610,119.0916256,145.33,145.24,37.72]
[1741355645810,147.75409948,145.33,145.24,37.72]
[1741355646111,28.66247388,145.3,145.2,37.72]
[1741355646308,28.7124871,145.3,145.27,1.285e-05]
[1741355646613,37.72,145.29,145.2,37.72]
[1741355646817,6.8849,145.23,145.2,37.72]
[1741355647207,6.8856,145.22,145.2,37.72]
[1741355647517,0.04831949,145.22,145.2,0.04608688]
[1741355647816,6.93381949,145.22,145.2,0.04608688]
[1741355648016,0.04831949,145.22,145.2,0.04608688]
[1741355654113,6.93371949,145.22,145.2,0.04608688]
[1741355654427,0.04831949,145.22,145.2,0.04608688]
[1741355656324,0.04831949,145.22,145.2,6.93208688]
[1741355656626,0.04831949,145.22,145.2,0.04608688]
[1741355657017,6.93351949,145.22,145.2,0.04608688]
[1741355657219,0.04831949,145.22,145.2,0.04608688]
[1741355657623,6.8857,145.21,145.2,0.04608688]
[1741355658020,6.8857,145.21,145.15,244.28]
[1741355658021,4.1028,145.21,145.15,244.28]
[1741355658224,6.8863,145.2,145.15,37.66]
[1741355658619,6.8863,145.2,145.16,6.8879]
[1741355658823,6.8868,145.19,145.16,6.8879]
[1741355659022,4.1028,145.21,145.16,6.8879]
[1741355659219,0.04536296,145.19,145.16,6.93347342]
[1741355659423,0.04536296,145.19,145.18,6.8871]
[1741355659727,0.04536296,145.19,145.16,0.04557342]
[1741355660716,6.8871,145.18,145.16,0.04557342]
[1741355662126,6.8875,145.18,145.16,0.04557342]
[1741355662328,0.04536296,145.19,145.16,0.04557342]
[1741355662624,6.8874,145.18,145.16,0.04557342]
[1741355663328,6.8876,145.17,145.16,0.04557342]
[1741355663519,0.04536296,145.19,145.16,0.04557342]
[1741355663925,6.8874,145.18,145.16,0.04557342]
[1741355664227,0.04536296,145.19,145.16,0.04557342]
[1741355664427,6.8874,145.18,145.16,0.04557342]
[1741355667530,6.8876,145.17,145.16,0.04557342]
[1741355671732,37.6,145.18,145.08,21.8368274]
[1741355672035,17.9370274,145.17,145.07,37.6]
[1741355672426,6.8905,145.11,145.07,37.6]
[1741355672728,0.04616348,145.1,145.08,0.04554401]
[1741355672931,0.04616348,145.1,145.08,6.93714401]
[1741355673133,0.04616348,145.1,145.08,0.04554401]
[1741355673826,0.04616348,145.1,145.09,6.8914]
[1741355674638,0.04616348,145.1,145.08,6.93714401]
[1741355674936,6.8914,145.09,145.08,0.04554401]
[1741355675437,6.93726348,145.1,145.08,0.04554401]
[1741355676531,6.8914,145.09,145.08,0.04554401]
[1741355678338,0.04616348,145.1,145.08,0.04554401]
[1741355679136,0.04616348,145.1,145.02,206.66]
[1741355679339,0.04616348,145.1,145.04,6.8934]
[1741355679539,17.9370274,145.11,145.01,37.56]
[1741355679740,17.9370274,145.11,145.04,6.8935]
[1741355680141,6.8929,145.06,145.0,59.3857274]
[1741355680441,6.8929,145.06,145.03,6.894]
[1741355680736,0.05173081,145.04,145.03,6.894]
[1741355681041,17.9370274,145.11,145.03,6.894]
[1741355681241,0.04878724,145.05,145.03,6.894]
[1741355681540,0.05170334,145.05,145.03,6.93834777]
[1741355681739,0.05170334,145.05,145.03,0.04434777]
[1741355682338,6.8938,145.04,145.03,0.04434777]
[1741355684042,0.05170334,145.05,145.03,0.04434777]
[1741355684247,4.15170334,145.05,145.03,0.04434777]
[1741355684739,6.8938,145.04,145.03,0.04434777]
[1741355685040,4.15170334,145.05,145.03,0.04434777]
[1741355685236,0.05170334,145.05,145.04,6.8938]
[1741355685432,0.05170334,145.05,145.03,0.04434777]
[1741355686745,0.05170334,145.05,145.04,6.8938]
[1741355687049,0.00615933,145.05,145.04,6.8938]
[1741355687242,0.00615933,145.05,145.04,24.8308274]
[1741355687441,7.868,145.13,145.04,17.9370274]
[1741355687641,7.868,145.13,145.09,6.8911]
[1741355688037,14.7578,145.13,145.09,6.8911]
[1741355688340,7.868,145.13,145.06,17.9370274]
[1741355688749,0.05133105,145.12,145.1,0.04479428]
[1741355689047,6.8921,145.08,145.03,37.54]
[1741355689245,6.8921,145.08,145.04,6.8935]
[1741355689449,6.8921,145.08,145.03,37.54]
[1741355690140,0.04509484,145.07,145.05,6.893]
[1741355690336,0.04509484,145.07,145.04,0.04539372]
[1741355690541,6.8929,145.06,145.04,0.04539372]
[1741355690742,0.04509484,145.07,145.04,0.04539372]
[1741355692047,6.8928,145.06,145.04,0.04539372]
[1741355692350,0.04509484,145.07,145.04,0.04539372]
[1741355695055,0.04509484,145.07,145.05,6.893]
[1741355695351,0.04509484,145.07,145.04,0.04539372]
[1741355695549,6.93749484,145.07,145.04,6.93899372]
[1741355695956,6.8933,145.05,145.04,0.04539372]
[1741355697047,6.893,145.06,145.04,0.04539372]
[1741355697251,0.04509484,145.07,145.04,0.04539372]
[1741355697750,6.8933,145.05,145.04,0.04539372]
[1741355699263,0.04509484,145.07,145.04,0.04539372]
[1741355701659,6.8933,145.05,145.04,0.04539372]
[1741355702054,0.04509484,145.07,145.04,0.04539372]
[1741355702261,6.93779484,145.07,145.04,0.04539372]
[1741355702559,0.04509484,145.07,145.04,0.04539372]
[1741355702755,6.8931,145.06,145.04,0.04539372]
[1741355703352,0.04509484,145.07,145.04,0.04539372]
[1741355703851,6.8931,145.06,145.04,0.04539372]
[1741355704248,0.04509484,145.07,145.05,6.8931]
[1741355704461,0.04509484,145.07,145.04,0.04539372]
[1741355704852,0.04509484,145.07,145.05,6.893]
[1741355705154,0.04509484,145.07,145.04,0.04539372]
[1741355705462,0.04509484,145.07,145.05,6.893]
[1741355705656,0.04509484,145.07,145.04,0.04539372]
[1741355706154,0.04509484,145.07,145.06,6.8928]
[1741355706655,0.04509484,145.07,145.05,10.9368]
[1741355706850,0.04509484,145.07,145.04,0.04539372]
[1741355708363,6.8933,145.05,145.04,0.04539372]
[1741355710857,3.8321,145.06,145.04,0.04539372]
[1741355711052,0.04509484,145.07,145.04,0.04539372]
[1741355711252,0.04509484,145.07,145.06,6.8928]
[1741355712356,0.04509484,145.07,145.05,17.9370274]
[1741355712554,0.04509484,145.07,145.06,6.8928]
[1741355712863,0.04509484,145.07,145.04,37.46539372]
[1741355713154,0.04509484,145.07,145.04,44.35889372]
[1741355714063,0.04509484,145.07,145.05,6.8932]
[1741355714761,0.04509484,145.07,145.05,6.8933]
[1741355714959,0.04509484,145.07,145.04,37.46539372]
[1741355715157,0.04509484,145.07,145.05,17.9370274]
[1741355715960,0.04509484,145.07,145.06,6.8928]
[1741355716164,76.30644679,145.18,145.05,21.3770274]
[1741355716358,6.888,145.17,145.1,17.9370274]
[1741355716556,76.30644679,145.18,145.12,17.9370274]
[1741355717156,76.30644679,145.18,145.15,6.8882]
[1741355717362,0.04891465,145.16,145.14,0.04755792]
[1741355717568,0.04891465,145.16,145.15,6.8885]
[1741355718061,0.04891465,145.16,145.14,24.87348532]
[1741355718255,0.04891465,145.16,145.14,0.04755792]
[1741355719968,6.93721465,145.16,145.14,0.04755792]
[1741355720263,0.04891465,145.16,145.14,0.04755792]
[1741355720465,6.8885,145.15,145.14,0.04755792]
[1741355720666,6.8885,145.15,145.03,216.01257177]
[1741355720667,17.98594205,145.16,145.06,60.4287274]
[1741355720869,17.9370274,145.16,145.06,65.9361274]
[1741355721061,17.9370274,145.14,145.06,37.36]
[1741355721366,3.8635,145.13,145.06,37.36]
[1741355721866,0.04614682,145.11,145.08,0.05143834]
[1741355723468,17.9370274,145.1,145.0,55.2770274]
[1741355723767,17.9370274,145.1,145.0,59.0070274]
[1741355723968,6.8923,145.07,145.02,6.8943]
[1741355724175,17.9370274,145.1,145.0,59.0070274]
[1741355724469,0.04427336,145.06,145.04,0.05153015]
[1741355725870,6.93747336,145.06,145.04,0.05153015]
[1741355726370,0.04427336,145.06,145.04,0.05153015]
[1741355728471,0.04427336,145.06,145.04,17.98855755]
[1741355728673,55.2570274,145.14,145.04,17.98855755]
[1741355728971,3.7794,145.15,145.06,17.9370274]
[1741355729282,3.7794,145.15,145.1,6.8906]
[1741355729863,3.9127441,145.13,145.1,6.93660313]
[1741355730370,3.9127441,145.13,145.1,0.04600313]
[1741355730965,3.9127441,145.13,145.11,6.8903]
[1741355731168,0.0492441,145.13,145.11,6.8903]
[1741355731370,17.9370274,145.2,145.1,17.98303053]
[1741355731677,17.9370274,145.2,145.1,17.9370274]
[1741355731863,17.9370274,145.18,145.1,6.8908]
[1741355732065,17.9370274,145.18,145.08,17.9370274]
[1741355732066,17.9370274,145.16,145.07,3.7576]
[1741355732566,0.05014117,145.13,145.1,0.05143594]
[1741355733273,0.05014117,145.13,145.12,6.89]
[1741355735472,0.05014117,145.13,145.1,0.05143594]
[1741355736174,0.05014117,145.13,145.12,6.89]
[1741355737167,0.05014117,145.13,145.11,6.8903]
[1741355737378,0.05014117,145.13,145.1,0.05143594]
[1741355738969,6.89,145.12,145.1,0.05143594]
[1741355739168,17.9370274,145.12,145.1,0.05143594]
[1741355739377,25.5274274,145.12,145.1,0.05143594]
[1741355739578,6.8904,145.11,145.1,0.05143594]
[1741355740275,6.8932,145.06,145.0,17.9370274]
[1741355740472,17.9370274,145.1,145.0,55.1770274]
[1741355740875,6.8921,145.08,145.0,55.1770274]
[1741355741078,17.9370274,145.1,145.0,55.1770274]
[1741355741278,25.5274274,145.12,145.06,6.8925]
[1741355741676,6.8915,145.09,145.02,17.9370274]
[1741355741873,6.8915,145.09,145.08,0.04619333]
[1741355745580,55.20969714,145.1,145.08,0.04619333]
[1741355745788,6.94386974,145.1,145.08,0.04619333]
[1741355745993,0.05266974,145.1,145.08,0.04619333]
[1741355746682,6.8914,145.09,145.08,0.04619333]
[1741355747282,0.05266974,145.1,145.08,0.04619333]
[1741355747879,6.8914,145.09,145.08,0.04619333]
[1741355750590,6.8914,145.09,145.0,59.1464274]
[1741355750788,17.9370274,145.08,145.0,4.0294]
[1741355751089,17.9370274,145.08,145.0,10.9248]
[1741355751289,17.9370274,145.08,144.97,261.8770274]
[1741355751693,6.8943,145.03,145.0,6.8954]
[1741355751887,0.04794858,145.04,145.01,0.04985393]
[1741355753887,6.94184858,145.04,145.01,0.04985393]
[1741355754083,0.04794858,145.04,145.01,0.04985393]
[1741355754601,0.04794858,145.04,145.02,6.8945]
[1741355754789,0.04794858,145.04,145.01,0.04985393]
[1741355755595,0.04794858,145.04,145.02,6.8945]
[1741355756393,0.04794858,145.04,145.03,6.8942]
[1741355756594,0.04794858,145.04,145.01,0.04985393]
[1741355757191,6.94194858,145.04,145.01,0.04985393]
[1741355757392,0.04794858,145.04,145.01,0.04985393]
[1741355757797,6.8946,145.03,145.01,0.04985393]
[1741355757994,0.04794858,145.04,145.01,6.94505393]
[1741355758393,6.94194858,145.04,145.01,6.94505393]
[1741355758696,0.04794858,145.04,145.01,0.04985393]
[1741355758896,6.94194858,145.04,145.01,0.04985393]
[1741355759198,0.04794858,145.04,145.01,0.04985393]
[1741355759600,0.04794858,145.04,145.03,6.8942]
[1741355761703,0.04794858,145.04,145.02,3.9516]
[1741355761704,0.04794858,145.04,145.02,10.8461]
[1741355761895,6.8942,145.03,145.01,0.04985393]
[1741355762204,0.04794858,145.04,145.01,0.04985393]
[1741355762497,6.8947,145.02,145.01,0.04985393]
[1741355763797,0.04794858,145.04,145.01,0.04985393]
[1741355765200,17.98497598,145.04,145.01,0.04985393]
[1741355766401,17.9370274,145.02,144.9,3.8917]
[1741355766699,17.9370274,144.97,144.88,3.7235]
[1741355767298,17.9370274,144.95,144.88,3.7235]
[1741355767505,17.9370274,144.93,144.85,58.16103081]
[1741355768711,0.04566868,144.9,144.88,0.0446006]
[1741355769606,44.04646868,144.9,144.88,0.0446006]
[1741355770202,6.9009,144.89,144.88,0.0446006]
[1741355770398,17.9370274,144.89,144.79,9.23257177]
[1741355770597,17.9370274,144.87,144.79,9.23257177]
[1741355770892,17.9370274,144.85,144.79,9.23257177]
[1741355771097,55.0370274,144.85,144.79,9.23257177]
[1741355771300,17.9370274,144.83,144.79,9.23257177]
[1741355771713,0.05291617,144.82,144.8,0.04516745]
[1741355771903,6.95731617,144.82,144.8,0.04516745]
[1741355772101,0.05291617,144.82,144.8,0.04516745]
[1741355772501,37.08,144.88,144.8,0.04516745]
[1741355772810,37.08,144.88,144.8,4.14096745]
[1741355773006,6.9029,144.85,144.8,4.14096745]
[1741355773214,6.9029,144.85,144.8,0.04516745]
[1741355773412,28.82552476,144.86,144.8,0.04516745]
[1741355774099,0.04392634,144.84,144.8,0.04516745]
[1741355774411,65.92552476,144.83,144.7,28.82552476]
[1741355774611,65.92552476,144.83,144.71,8.1063]
[1741355775109,44.0039,144.83,144.79,6.9056]
[1741355775502,0.04899288,144.82,144.8,0.04929012]
[1741355775701,0.04899288,144.82,144.69,65.75581186]
[1741355775702,3.78369288,144.82,144.69,36.9302871]
[1741355775908,28.82552476,144.76,144.69,36.9302871]
[1741355776207,40.968,144.75,144.69,36.9302871]
[1741355776711,6.9087,144.73,144.69,36.9302871]
[1741355776913,0.04974632,144.73,144.71,0.05249766]
[1741355777410,40.968,144.75,144.66,6.9118]
[1741355777604,0.04831505,144.73,144.71,0.04805034]
[1741355777807,6.909,144.72,144.71,0.04805034]
[1741355778109,28.87383981,144.73,144.63,40.8532]
[1741355778314,28.87383981,144.73,144.7,4.759e-05]
[1741355778512,28.82552476,144.73,144.6,36.9302871]
[1741355778816,28.82552476,144.7,144.6,36.9302871]
[1741355779118,28.82552476,144.67,144.6,36.9302871]
[1741355779417,6.9135,144.63,144.6,36.9302871]
[1741355779712,0.04369459,144.65,144.6,36.9302871]
[1741355779912,6.95639459,144.65,144.6,36.9302871]
[1741355780102,0.04369459,144.65,144.6,36.9302871]
[1741355780509,0.04369459,144.65,144.64,6.9128]
[1741355780704,3.7321,144.72,144.61,69.96142476]
[1741355780912,3.8101,144.73,144.64,28.82552476]
[1741355781210,37.08,144.78,144.64,28.82552476]
[1741355781517,3.8101,144.77,144.61,41.1359]
[1741355781718,3.9572,144.75,144.64,6.9128]
[1741355781929,3.9572,144.75,144.62,28.82552476]
[1741355782130,3.9572,144.75,144.67,0.0519547]
[1741355782131,0.04928271,144.7,144.67,0.0519547]
[1741355782627,0.04928271,144.7,144.69,6.9104]
[1741355782831,0.04928271,144.7,144.67,37.1519547]
[1741355783124,3.8101,144.77,144.68,28.82552476]
[1741355783331,3.8101,144.77,144.68,32.71602476]
[1741355783834,3.8101,144.77,144.71,6.9091]
[1741355784130,44.7758,144.8,144.68,32.71602476]
[1741355784331,0.04854881,144.75,144.73,0.0443058]
[1741355784733,3.7386,144.8,144.73,0.0443058]
[1741355784933,0.04676477,144.75,144.74,6.9081]
[1741355785133,3.7386,144.8,144.74,6.9081]
[1741355785431,0.04880806,144.76,144.75,6.9076]
[1741355785625,4.1052,144.82,144.74,28.82552476]
[1741355786724,40.8556,144.86,144.74,28.82552476]
[1741355786925,0.04687455,144.79,144.78,6.9062]
[1741355787128,3.7756,144.86,144.77,65.95156988]
[1741355787321,4.0251,144.88,144.77,65.90552476]
[1741355787730,4.0251,144.88,144.8,28.82552476]
[1741355787926,6.901,144.89,144.83,6.9034]
[1741355788128,6.901,144.89,144.8,28.82552476]
[1741355788328,0.04824787,144.87,144.85,0.048544]
[1741355788829,36.64432476,144.92,144.85,0.048544]
[1741355789030,0.0480058,144.87,144.85,0.048544]
[1741355789233,6.9023,144.86,144.85,0.048544]
[1741355790032,0.05086556,144.87,144.76,69.68092476]
[1741355790436,6.9037,144.84,144.78,6.9061]
[1741355790641,40.8153,144.88,144.76,69.68092476]
[1741355791233,0.0469259,144.83,144.81,0.04506091]
[1741355791539,28.82552476,144.86,144.81,0.04506091]
[1741355791742,6.9042,144.82,144.81,0.04506091]
[1741355791932,0.04391062,144.83,144.81,0.04506091]
[1741355792733,36.64432476,144.92,144.81,37.08506091]
[1741355792734,73.68432476,144.92,144.81,37.08506091]
[1741355792937,73.68432476,144.92,144.81,37.04]
[1741355793342,28.82552476,144.89,144.78,37.04]
[1741355793543,3.745,144.88,144.78,37.04]
[1741355794141,0.04983159,144.84,144.82,0.05064928]
[1741355794342,7.8188,144.92,144.83,37.02]
[1741355794943,28.82552476,144.89,144.8,37.02]
[1741355795143,28.82552476,144.89,144.79,37.02]
[1741355795443,0.04834911,144.85,144.83,0.05213947]
[1741355795839,6.9033,144.84,144.83,0.05213947]
[1741355796443,37.06834911,144.85,144.76,3.7954]
[1741355796644,4.0512,144.84,144.76,3.7954]
[1741355797448,4.0512,144.84,144.81,6.9047]
[1741355797944,0.04823964,144.84,144.82,6.9042]
[1741355798143,0.04823964,144.84,144.79,0.04407457]
[1741355798644,0.04823964,144.84,144.83,6.9038]
[1741355800448,37.0,144.93,144.87,6.9017]
[1741355800644,4.0988,144.92,144.87,6.9017]
[1741355800846,10.9984,144.92,144.83,36.98]
[1741355801042,4.0988,144.92,144.83,36.98]
[1741355801349,4.0988,144.92,144.84,3.8157]
[1741355801757,0.05145256,144.89,144.86,0.05223294]
[1741355802048,0.05145256,144.89,144.86,6.95423294]
[1741355802341,0.05145256,144.89,144.86,0.05223294]
[1741355802941,6.9019,144.87,144.86,0.05223294]
[1741355803141,0.05145256,144.89,144.79,40.9818]
[1741355803341,3.8282,144.89,144.79,36.98]
[1741355803542,3.8282,144.89,144.8,6.9049]
[1741355803738,32.77132476,144.88,144.8,6.9049]
[1741355804145,6.9034,144.84,144.8,6.9049]
[1741355804449,6.9034,144.84,144.83,0.04647762]
[1741355804850,6.9048,144.81,144.78,6.9059]
[1741355805045,4.0607,144.84,144.82,0.05203627]
[1741355805239,4.0607,144.84,144.8,0.04654532]
[1741355805546,6.9047,144.81,144.8,0.04654532]
[1741355806048,0.04464292,144.83,144.73,40.6763]
[1741355806246,4.0607,144.84,144.73,40.6763]
[1741355806552,4.0607,144.84,144.74,28.82552476]
[1741355807245,4.0607,144.84,144.78,0.04892389]
[1741355807246,0.04669655,144.8,144.78,0.04892389]
[1741355807750,0.04669655,144.8,144.79,6.9057]
[1741355808057,0.04669655,144.8,144.78,0.04892389]
[1741355809751,6.9079,144.75,144.68,36.94]
[1741355809948,36.94,144.78,144.67,7.7366]
[1741355810345,36.94,144.78,144.63,73.86057423]
[1741355810346,28.82552476,144.76,144.63,73.86057423]
[1741355810545,28.82552476,144.73,144.63,77.65697423]
[1741355810747,65.76552476,144.73,144.63,77.65697423]
[1741355810941,0.0461935,144.71,144.69,0.04836965]
[1741355811550,0.0461935,144.71,144.7,6.91]
[1741355812257,0.0461935,144.71,144.69,6.95876965]
[1741355812455,0.0461935,144.71,144.69,0.04836965]
[1741355812650,0.0461935,144.71,144.7,6.91]
[1741355812954,3.8123,144.79,144.69,0.04836965]
[1741355813353,32.63782476,144.79,144.67,28.82552476]
[1741355813759,32.63782476,144.79,144.7,6.9097]
[1741355814056,0.05141409,144.74,144.72,0.05268372]
[1741355814455,0.049598,144.74,144.72,0.05268372]
[1741355815562,6.9085,144.73,144.72,0.05268372]
[1741355815754,0.049598,144.74,144.72,0.05268372]
[1741355816460,0.049598,144.74,144.73,6.9085]
[1741355816948,0.049598,144.74,144.72,0.05268372]
[1741355817153,6.957898,144.74,144.72,0.05268372]
[1741355817352,0.049598,144.74,144.72,0.05268372]
[1741355817549,36.969598,144.74,144.72,0.05268372]
[1741355817752,36.969598,144.74,144.64,36.92]
[1741355817954,41.039798,144.74,144.64,36.92]
[1741355818160,40.9902,144.74,144.64,36.92]
[1741355818561,40.9902,144.74,144.64,65.74552476]
[1741355818763,40.9902,144.74,144.71,6.9092]
[1741355818959,36.92,144.74,144.71,6.9092]
[1741355819161,0.05178654,144.74,144.71,0.05047298]
[1741355819462,28.82552476,144.72,144.63,3.7964]
[1741355819665,65.72552476,144.72,144.63,3.7964]
[1741355819963,36.9,144.75,144.64,28.82552476]
[1741355820257,36.9,144.77,144.64,28.82552476]
[1741355820556,0.04519865,144.71,144.68,0.03725876]
[1741355820956,7.9215,144.78,144.64,28.82552476]
[1741355821158,0.05307284,144.71,144.68,0.03725876]
[1741355821458,6.9086,144.73,144.69,6.9101]
[1741355821662,0.04962351,144.71,144.68,0.03725876]
[1741355821962,3.8513,144.78,144.69,36.9]
[1741355822259,3.8513,144.78,144.7,3.7514]
[1741355822464,6.9093,144.72,144.68,6.9107]
[1741355822667,36.9,144.74,144.63,44.532]
[1741355822858,65.72552476,144.74,144.63,44.532]
[1741355823260,0.04965606,144.7,144.67,0.04858066]
[1741355823456,0.04965606,144.7,144.68,6.9106]
[1741355823661,0.04965606,144.7,144.67,0.04858066]
[1741355824056,6.9105,144.69,144.67,0.04858066]
[1741355824260,0.04965606,144.7,144.67,0.04858066]
[1741355825168,0.04965606,144.7,144.69,6.9104]
[1741355825659,0.04965606,144.7,144.67,43.83968066]
[1741355825864,0.04965606,144.7,144.67,36.92858066]
[1741355826062,0.04965606,144.7,144.67,0.04858066]
[1741355827564,0.04965606,144.7,144.69,6.9104]
[1741355828165,40.7313,144.78,144.68,65.70552476]
[1741355828665,3.8513,144.78,144.75,6.9073]
[1741355828871,3.8513,144.78,144.68,65.70552476]
[1741355829272,0.0530089,144.74,144.72,0.05023013]
[1741355829872,0.0530089,144.74,144.73,6.9085]
[1741355830070,0.0530089,144.74,144.72,0.05023013]
[1741355830367,0.0530089,144.74,144.72,6.95893013]
[1741355830870,0.0530089,144.74,144.73,6.9085]
[1741355831271,0.0530089,144.74,144.72,0.05023013]
[1741355831569,0.0530089,144.74,144.73,6.9085]
[1741355832174,0.0530089,144.74,144.72,6.95893013]
[1741355832569,0.0530089,144.74,144.72,0.05023013]
[1741355832766,6.9611089,144.74,144.72,0.05023013]
[1741355833775,0.0530089,144.74,144.72,0.05023013]
[1741355833971,0.0530089,144.74,144.73,6.9085]
[1741355834167,0.0530089,144.74,144.72,0.05023013]
[1741355835268,0.0530089,144.74,144.73,6.9085]
[1741355835468,8.9e-06,144.74,144.73,6.9085]